Cogmind - Beta 15 @@@ ROGUE MODE // 2025.06.16 @ 20:35:49 Player: 7604 Result: Self-destructed Performance ------------- Evolutions (6) 3000 Regions Visited (12) 2400 Robots Destroyed (154) 770 Value Destroyed (7464) 7464 Prototype IDs (31) 620 Alien Tech Used (0) 0 Bonus (1058) 1058 TOTAL SCORE: 15312 Bonus ------- High Alert Combat Kills 1779 Follower Combat Kills 1404 Network Hubs Disabled 200 Registered with UFD 300 Met Optimus in HQ 500 Built Enhanced Grunts 300 A7 Reached Mainframe 300 Met R17 at Cetus 500 Friendly Fire -4225 Cogmind --------- Core Integrity 903/1150 Matter 136/300 Energy 51/100 System Corruption 27% Temperature Cool (0) Movement Walking (110) Location -4/Factory Parts ------- > --- POWER (2) -------- (None) > --- PROPULSION (6) --- Flexi-carbon Leg Medium Armored Exoskeleton Advanced VSS Leg Advanced VSS Leg > --- UTILITY (7) ------ Improved Cooling System High-capacity Storage Unit Advanced Sensor Array Advanced Signal Interpreter Improved Target Analyzer Improved Medium Armor Plating Layered Medium Armor Plating > --- WEAPON (4) ------- Heavy Rocket Launcher Advanced Datajack (fused) > --- INVENTORY (20) --- High-density Centrium Heavy Treads Flexi-carbon Leg Flexi-carbon Leg Flexi-carbon Leg Improved VSS Leg Advanced Power Amplifier Advanced Energy Well (500) Structural Scanner Improved Target Analyzer Advanced Recoil Stabilizer Advanced Particle Charger Improved Transmission Jammer Damper Plating Improved Remote Force Field Improved Plasma Cutter Multitool Peak State ------------ > --- POWER ------------ Quantum Reactor Quantum Reactor > --- PROPULSION ------- Flexi-carbon Leg Flexi-carbon Leg Flexi-carbon Leg Flexi-carbon Leg Enhanced Flexi-carbon Leg Enhanced Flexi-carbon Leg > --- UTILITY ---------- Scrap Suit Huge Storage Unit Improved Kinecellerator Improved Weapon Cycler Centrium Medium Armor Plating Medium Regenerative Plating > --- WEAPON ----------- Advanced KE Penetrator Advanced KE Penetrator > --- INVENTORY -------- Quantum Reactor Armored Medium Treads Improved Cooling System Advanced Cooling System Advanced Energy Well Structural Scanner Seismic Detector Armor Integrity Analyzer Recoil Stabilizer Improved Transmission Jammer Improved Medium Armor Plating Centrium Medium Armor Plating Centrium Medium Armor Plating Centrium Medium Armor Plating KE Penetrator KE Penetrator KE Penetrator KE Penetrator Advanced KE Penetrator Advanced KE Penetrator Advanced KE Penetrator Heavy Rocket Launcher Improved Datajack Improved Plasma Cutter Multitool [Rating: 119] Favorites ----------- Power Subdweller Power Source Engine Subdweller Power Source Power Core Neutrino Core Reactor Quantum Reactor Propulsion Flexi-carbon Leg Treads Advanced Treads Leg Flexi-carbon Leg Wheel Wheel Utility Huge Storage Unit Device Seismic Detector Storage Huge Storage Unit Processor Improved Target Analyzer Hackware Makeshift Hacking Suite Protection Centrium Medium Armor Plating Weapon Subdweller Beam Cannon Energy Gun Subdweller Laser Energy Cannon Subdweller Beam Cannon Ballistic Gun KE Penetrator Ballistic Cannon Battle Cannon Launcher Heavy Rocket Launcher Special Weapon Multitool Special Melee Weapon Advanced Datajack Build | -11 -10 -10 -7 -7 -5 -5 -5 -5 -5 -4 -4 -4 ------- Run | Yrd Mat Sub Rec Scr Fac Ext Cet Arc Hub Fac Was Fac Slots Evolved 12 | . . . . . 10 . . . . 2 . . Power 1 | . . . . . 1 . . . . . . . Propulsion 4 | . . . . . 4 . . . . . . . Utility 5 | . . . . . 5 . . . . . . . Weapon 2 | . . . . . . . . . . 2 . . Parts Attached 174 | 1 5 16 2 4 24 34 12 10 40 17 2 7 Power 19 | . . 3 . 1 2 2 2 1 6 2 . . Engine 7 | . . 3 . 1 1 1 . . 1 . . . Core 6 | . . . . . 1 1 . . 4 . . . Reactor 6 | . . . . . . . 2 1 1 2 . . Propulsion 57 | . 2 2 2 1 7 14 2 4 12 9 . 2 Treads 21 | . 2 2 2 1 . 4 1 . 7 2 . . Leg 31 | . . . . . 7 10 1 4 . 7 . 2 Wheel 5 | . . . . . . . . . 5 . . . Hover . | . . . . . . . . . . . . . Flight . | . . . . . . . . . . . . . Utility 57 | 1 1 3 . . 11 11 4 4 13 3 1 5 Device 34 | 1 . 2 . . 7 9 1 3 7 1 1 2 Storage 2 | . 1 . . . . . . . . 1 . . Processor 3 | . . . . . 1 . . . 1 . . 1 Hackware 1 | . . . . . 1 . . . . . . . Protection 17 | . . 1 . . 2 2 3 1 5 1 . 2 Artifact . | . . . . . . . . . . . . . Weapon 41 | . 2 8 . 2 4 7 4 1 9 3 1 . Energy Gun 12 | . . 2 . 2 3 1 1 . 3 . . . Energy Cannon 3 | . . 3 . . . . . . . . . . Ballistic Gun 17 | . 1 1 . . 1 3 3 1 4 3 . . Ballistic Cannon 2 | . . 1 . . . . . . 1 . . . Launcher 2 | . . 1 . . . . . . 1 . . . Special Weapon 3 | . 1 . . . . 2 . . . . . . Impact Weapon . | . . . . . . . . . . . . . Slashing Weapon . | . . . . . . . . . . . . . Piercing Weapon . | . . . . . . . . . . . . . Special Melee Weapon 2 | . . . . . . 1 . . . . 1 . Unidentified Prototypes 7 | . . . . . . . 4 . 2 1 . . Corrupted Parts 7 | . . . . . . . 5 . 2 . . . System Corruption 44 | . . . . . . . 30 . 14 . . . Parts Lost 81 | . . 8 . . 6 15 3 . 36 5 1 7 Power 7 | . . 1 . . 1 1 . . 3 . . 1 Propulsion 28 | . . 2 . . 3 6 3 . 13 1 . . Utility 26 | . . 2 . . 1 7 . . 12 1 1 2 Weapon 20 | . . 3 . . 1 1 . . 8 3 . 4 Highest Loss Streak 15 | . . 3 . . 3 6 3 . 15 4 1 4 To Critical Strikes 1 | . . . . . . . . . 1 . . . Average Backups 20 | 6 8 19 22 22 16 22 24 24 22 22 17 17 Power 1 | 1 2 2 3 1 . . . 1 1 1 . . Propulsion 3 | 4 3 5 6 5 1 2 2 . . 2 4 5 Utility 6 | . 1 2 2 5 9 8 10 11 11 12 9 8 Weapon 6 | 1 2 7 9 7 4 9 7 8 6 4 1 1 Tool/Special . | . . . . . . . . . . . . . Unused Backups 59 | 6 2 2 2 20 1 4 7 1 4 2 . 8 Power 8 | 1 . 1 1 4 . . . . 1 . . . Propulsion 17 | 2 2 . 1 6 . . 1 . 2 . . 3 Utility 16 | 1 . . . 2 1 2 2 1 1 1 . 5 Weapon 17 | 2 . 1 . 7 . 2 4 . . 1 . . Tool/Special 1 | . . . . 1 . . . . . . . . Average Slot Usage (%) 92 | . 100 99 100 99 82 85 91 87 89 82 71 63 Engine 8 | . 14 13 14 13 5 1 . . . . . . Core 1 | . . . . . . 9 . . 8 3 . . Reactor 1 | . . . . . . . 10 5 1 3 5 4 Treads 17 | . 24 28 28 28 7 1 . . 10 12 . . Leg 9 | . 3 . . . 21 26 33 34 10 9 16 15 Device 15 | . 14 13 14 14 19 22 16 15 21 14 12 10 Storage 10 | . 14 14 14 14 5 5 5 5 5 5 5 5 Processor 1 | . . . . . 1 1 . . 1 5 5 6 Protection 2 | . . . . . 4 3 10 11 7 5 5 5 Energy Gun 2 | . . 4 . . 9 1 . . . . . . Energy Cannon 5 | . . 8 14 13 . . . . . . . . Ballistic Gun 10 | . 24 8 14 13 1 7 9 7 8 20 16 9 Ballistic Cannon 1 | . . 6 . . . . . . . . . . Peak Build Rating 119 | 7 8 18 20 28 84 104 116 119 116 115 108 103 Average Rating 50 | 6 7 13 19 23 70 87 102 106 91 103 100 91 On Entrance 57 | 6 7 8 16 20 28 82 87 111 110 81 102 94 Naked Turns . | . . . . . . . . . . . . . Heaviest Build 164 | 13 88 100 98 106 114 129 157 157 151 164 106 99 Greatest Support 166 | 20 40 40 44 44 115 135 115 152 152 166 108 106 Greatest Overweight (x) 43 | . 2 2 2 2 2 2 1 43 13 8 1 1 Average Overweight (x) 1 | . 1 2 2 2 . . 1 1 2 1 . . Largest Inventory Capacity 25 | 8 25 25 25 25 25 25 25 25 25 25 20 20 Average Capacity 24 | 8 23 25 25 25 25 25 25 25 25 23 20 20 Most Carried 25 | 8 10 25 25 25 24 25 25 25 25 25 20 20 Average Carried 21 | 6 8 20 24 24 18 22 24 24 22 22 17 18 Final Capacity 25 | 8 25 25 25 25 25 25 25 25 25 20 20 20 Final Carried 25 | 8 10 25 25 23 20 24 25 25 25 17 20 20 Class Distribution -------------------- 57% | Mutant 29% | Scavenger-Mutant 7% | Scavenger-Tank Dominant Class ---------------- Mutant | -10/Materials Mutant | -10/Subcaves Mutant | -7/Recycling Mutant | -7/Scraptown Derelict-Mutant | -5/Factory Scavenger-Mutant | -5/Extension Scavenger-Mutant | -5/Cetus Scavenger-Mutant | -5/Archives Scavenger-Mutant | -5/Hub_04(d) Scavenger-Tank | -4/Factory Scavenger-Tank | -4/Waste Scavenger-Mutant | -4/Factory Resources | -11 -10 -10 -7 -7 -5 -5 -5 -5 -5 -4 -4 -4 ----------- Run | Yrd Mat Sub Rec Scr Fac Ext Cet Arc Hub Fac Was Fac Matter Collected 7040 | 258 33 534 23 20 391 1028 689 839 2223 557 . 445 Remotely . | . . . . . . . . . . . . . Salvage Created 7477 | 167 49 636 . . 612 1675 407 525 2630 575 . 201 Parts 385 | 10 5 37 . . 26 65 21 40 144 31 . 6 Haulers Intercepted . | . . . . . . . . . . . . . Recyclers Shooed 4 | . . . . . . 3 . . . . . 1 Parts Field Recycled . | . . . . . . . . . . . . . Retrieved Matter . | . . . . . . . . . . . . . Parts Self-Destructed 17 | . . 17 . . . . . . . . . . Prevented . | . . . . . . . . . . . . . Kills | -11 -10 -10 -7 -7 -5 -5 -5 -5 -5 -4 -4 -4 ------- Run | Yrd Mat Sub Rec Scr Fac Ext Cet Arc Hub Fac Was Fac Combat Hostiles Destroyed 115 | . 1 15 . . 9 20 2 2 50 10 . 6 Guns 74 | . 1 5 . . 5 19 2 2 29 10 . 1 Cannons 15 | . . 9 . . . . . . 6 . . . AOE 21 | . . 1 . . . . . . 15 . . 5 Classes Destroyed 20 | 2 2 3 . . 4 4 1 . 4 . . . Worker 8 | . . . . . . . . . 7 . . 1 Builder 9 | . . . . . . 2 . . 6 1 . . Tunneler 4 | 4 . . . . . . . . . . . . Recycler 2 | 1 . . . . . 1 . . . . . . Operator 8 | . 1 . . . . 1 . 6 . . . . Turret 2 | . . 2 . . . . . . . . . . Watcher 1 | . . . . . . 1 . . . . . . Swarmer 10 | . . 3 . . . . . . 4 3 . . Saboteur 2 | . . . . . . . . . 2 . . . Grunt 38 | . 1 . . . 3 5 . . 19 4 . 6 Brawler 3 | . . . . . . . . . 3 . . . Duelist 1 | . . . . . . 1 . . . . . . Protector 1 | . . . . . . . . . 1 . . . Sentry 23 | . . . . . 2 9 . 2 9 1 . . Specialist 4 | . . . . . . . . . 4 . . . Hunter 6 | . . . . . 2 4 . . . . . . Programmer 10 | . . . . . 1 . . . 7 2 . . Heavy 2 | . . . . . 1 . . . 1 . . . Behemoth 1 | . . . . . . 1 . . . . . . Cetus Guard 2 | . . . . . . . 2 . . . . . Enhanced Grunt 1 | . . . . . . . . 1 . . . . Subdweller 12 | . . 12 . . . . . . . . . . Thug 1 | . . . . . . . 1 . . . . . Savage 1 | . . . . . . . 1 . . . . . Guerrilla 1 | . . . . . . . 1 . . . . . Best Kill Streak 10 | 4 5 4 . . 3 4 1 2 10 3 . 4 Combat Bots Only 8 | . 1 4 . . 3 4 1 1 8 3 . 3 Max Kills in Single Turn 4 | 1 1 1 . . 1 1 1 1 4 2 . 2 Gunslinging 1 | . . . . . . . . . 1 1 . . Exploded 4 | . . 1 . . . . . . 4 . . 2 Melee . | . . . . . . . . . . . . . Uniques/NPCs Destroyed 1 | . . . . . . . 1 . . . . . A7 (-5/Cetus) Combat | -11 -10 -10 -7 -7 -5 -5 -5 -5 -5 -4 -4 -4 -------- Run | Yrd Mat Sub Rec Scr Fac Ext Cet Arc Hub Fac Was Fac Hostile Shots Fired 1160 | . 5 103 . . 105 186 41 22 494 121 1 82 Missed 311 | . . 34 . . 21 60 13 9 117 30 . 27 Hits 849 | . 5 69 . . 84 126 28 13 377 91 1 55 Melee 3 | . . . . . . . . . 2 . 1 . Projectile 846 | . 5 69 . . 84 126 28 13 375 91 . 55 AOE 3 | . . 1 . . . . . . . 2 . . Critical Strikes 52 | . . 1 . . 3 2 5 . 31 7 . 3 Part Disruptions 4 | . . . . . . . . . 3 1 . . Damage Taken 17927 | . 54 1185 . . 1762 2593 698 353 8107 2043 32 1100 Core 1438 | . . 219 . . 123 271 51 . 527 179 . 68 Absorbed by Shields 177 | . . . . . . 49 128 . . . . . Reduced by Siege Mode 15 | . . . . . . . . . 15 . . . Redirected to Shielding 122 | . . . . . 107 15 . . . . . . Ignored by Resistances 1175 | . . 25 . . . . . . 683 382 14 71 Regen/Repaired (Parts) 516 | . . . . . 10 125 52 198 131 . . . Core Remaining (%) 38 | 100 . . . 12 . . . . 2 . . . Volleys Fired 605 | 8 15 70 . . 49 107 61 78 151 35 3 28 Largest 4 | 2 2 2 . . 2 2 2 2 2 4 4 2 Hottest 225 | 40 100 140 . . 225 155 70 70 120 134 134 66 Shots Fired 1076 | 16 23 121 . . 92 204 97 106 258 121 11 27 Gun 903 | 16 16 57 . . 92 201 68 80 222 121 11 19 Cannon 85 | . . 61 . . . . . . 24 . . . Launcher 23 | . . 3 . . . . . . 12 . . 8 Special 65 | . 7 . . . . 3 29 26 . . . . Kinetic 741 | 16 16 49 . . 5 133 68 80 223 121 11 19 Thermal 292 | . 7 72 . . 87 71 29 26 . . . . Explosive 20 | . . . . . . . . . 12 . . 8 Electromagnetic 23 | . . . . . . . . . 23 . . . Robot Hit Streak 20 | 9 13 20 . . 14 16 6 8 16 15 8 9 Robot Miss Streak 7 | 1 4 3 . . 2 3 4 7 3 3 3 1 Penetration Max 1 | . . . . . . 1 1 . 1 1 . . Secondary Targets 12 | . . . . . . 2 2 . 6 2 . . Max Gunslinging Chain 1 | . . . . . . 1 1 . 1 1 . . Shots Hit Robots 738 | 12 10 78 . . 66 152 61 53 186 73 30 17 Core Hits 341 | 6 4 26 . . 17 63 21 23 126 28 3 24 Critical Kills 18 | . . 2 . . 2 1 1 5 6 1 . . Critical Parts Destroyed 42 | . . . . . . 3 5 11 21 2 . . Critical Strikes 81 | . . 3 . . 5 4 9 17 33 8 2 . Burn 3 | . . . . . 3 . . . . . . . Destroy 75 | . . 2 . . 2 4 9 17 31 8 2 . Blast 3 | . . 1 . . . . . . 2 . . . Melee Attacks 32 | . . . . . . 1 3 . . . 23 5 Impact . | . . . . . . . . . . . . . Slashing . | . . . . . . . . . . . . . Piercing . | . . . . . . . . . . . . . Sneak Attacks 23 | . . . . . . 1 3 . . . 15 4 Combat Hostiles 14 | . . . . . . . . . . . 14 . Follow-up Attacks . | . . . . . . . . . . . . . Damage Inflicted 25026 | 164 126 1927 25 . 1827 4120 1852 1453 10086 2126 237 1083 Guns 17882 | 164 126 745 . . 1775 4105 1757 1410 5210 2126 237 227 Cannons 2334 | . . 894 . . . . . . 1440 . . . Explosions 4526 | . . 288 . . . . . . 3436 . . 802 Melee . | . . . . . . . . . . . . . Ramming 146 | . . . 25 . 52 15 . . . . . 54 Kinetic 16141 | 164 126 835 . . 93 2761 1757 1410 6405 2126 237 227 Thermal 4461 | . . 1092 . . 1682 1344 95 43 205 . . . Explosive 3918 | . . . . . . . . . 3116 . . 802 Electromagnetic 360 | . . . . . . . . . 360 . . . Impact . | . . . . . . . . . . . . . Slashing . | . . . . . . . . . . . . . Piercing . | . . . . . . . . . . . . . Highest Corruption 32 | . . . . . 8 3 26 26 32 3 25 27 Average Corruption 15 | . . . . . 4 2 18 16 16 2 17 25 Corruption Purged 32 | . . . . . 5 3 4 20 . . . . Corruption Blocked . | . . . . . . . . . . . . . Effects 264 | . . . . . 18 . 37 41 88 8 16 56 Message Errors 75 | . . . . . 5 . 13 11 23 2 4 17 Matter Fused 49 | . . . . . 4 . 8 11 13 1 3 9 Heat Flow Errors 19 | . . . . . 1 . . 3 8 . 3 4 Energy Discharges 31 | . . . . . 2 . 3 5 7 1 2 11 Parts Rejected 4 | . . . . . . . . . 3 . . 1 Parts Fused 2 | . . . . . . . . . . . 1 1 Data Loss (minor) 35 | . . . . . 2 . 4 5 16 3 2 3 Data Loss (major) 14 | . . . . . 2 . 2 2 3 . . 5 Misfires 16 | . . . . . 2 . 4 3 6 1 . . Alerts 3 | . . . . . . . 2 . 1 . . . Misdirections 6 | . . . . . . . . . 2 . 1 3 Weapon Failures 10 | . . . . . . . 1 1 6 . . 2 Overload Shots 2 | . . . . . 2 . . . . . . . Overflow Damage 9 | . . 5 . . . . . . 4 . . . Projectiles 5 | . . 5 . . . . . . . . . . Explosions 4 | . . . . . . . . . 4 . . . Melee . | . . . . . . . . . . . . . Knockbacks 7 | . . 5 1 . 1 . . . . . . . Impact 2 | . . . 1 . 1 . . . . . . . Kinetic 5 | . . 5 . . . . . . . . . . Secondary . | . . . . . . . . . . . . . Self-Inflicted Damage 198 | . . . . . . . . . 198 . . . Shots 4 | . . . . . . . . . 4 . . . Rammed 2 | . . . 2 . . . . . . . . . Targets Rammed 16 | . . . 2 . 3 1 . . . . . 10 Kicked 14 | . . . . . 3 1 . . . . . 10 Crushed . | . . . . . . . . . . . . . Highest Temperature 468 | . 40 76 . . 468 186 224 319 287 468 251 226 Average Temperature 92 | . 16 24 . . 169 67 61 49 90 181 112 99 Received Heat Transfer 3493 | . 30 225 . . 198 359 67 63 1843 597 . 111 Effects 12 | . . . . . 9 . . 1 . 2 . . Shutdowns 2 | . . . . . 1 . . . . 1 . . Energy Bleed 2 | . . . . . 1 . . . . 1 . . Interference 4 | . . . . . 4 . . . . . . . Matter Decay 1 | . . . . . 1 . . . . . . . Short Circuit 2 | . . . . . 1 . . 1 . . . . Damage (minor) 1 | . . . . . 1 . . . . . . . Siege Activations 1 | . . . . . . . . . 1 . . . Total Turns 35 | . . . . . . . . . 35 . . . Longest Duration 35 | . . . . . . . . . 35 . . . Martial Activations . | . . . . . . . . . . . . . Shielding Activations . | . . . . . . . . . . . . . Robots Disrupted 2 | . . . . . . . 1 1 . . . . Combat Hostiles . | . . . . . . . . . . . . . Robots Corrupted . | . . . . . . . . . . . . . Combat Hostiles . | . . . . . . . . . . . . . Parts Fried . | . . . . . . . . . . . . . Impact Corruptions . | . . . . . . . . . . . . . Robots Melted 5 | . . . . . 4 1 . . . . . . Combat Hostiles 5 | . . . . . 4 1 . . . . . . Parts Melted 31 | . . 3 . . 9 19 . . . . . . Heat Transferred 7770 | . . 1425 . . 3348 2443 229 175 150 . . . Parts Sabotaged . | . . . . . . . . . . . . . Parts Stolen . | . . . . . . . . . . . . . Parts Stripped . | . . . . . . . . . . . . . Power Chain Reactions 1 | . . . . . . . . . 1 . . . Alert | -11 -10 -10 -7 -7 -5 -5 -5 -5 -5 -4 -4 -4 ------- Run | Yrd Mat Sub Rec Scr Fac Ext Cet Arc Hub Fac Was Fac Maximum Alert Level 5 | . . . . . . 1 . . 5 3 1 1 Low Security (%) 71 | 100 100 . 100 . 100 87 100 100 7 . 42 99 Level 1 4 | . . . . . . 12 . . 5 . 57 . Level 2 7 | . . . . . . . . . 41 12 . . Level 3 10 | . . . . . . . . . 18 87 . . Level 4 3 | . . . . . . . . . 20 . . . Level 5 . | . . . . . . . . . 5 . . . High Security . | . . . . . . . . . . . . . Max Security . | . . . . . . . . . . . . . Peak Influence 1796 | 15 30 . 30 . 113 314 195 136 1796 1001 309 210 Initial 864 | . 3 . . . . 19 137 20 . 864 309 104 Average 247 | 3 2 . 2 . 39 90 89 27 794 844 225 52 Influence Increases 6307 | 25 48 130 104 . 413 1191 421 293 2701 522 . 459 Destroy 0b10 Robot/C 2700 | . 20 100 . . 180 680 180 80 1020 200 . 240 Destroy 0b10 Robot/NC 205 | 25 5 . . . . 30 10 30 70 5 . 30 Destroy Leader 454 | . 10 . . . 60 74 10 . 220 30 . 50 Allied During Kill 530 | . . . . . . 266 152 58 27 . . 27 Successful Hack 149 | . 9 . 14 . 74 26 . . 26 . . . Select Force Hacks 90 | . . . 90 . . . . . . . . . Disable Machine 705 | . . . . . 30 60 15 75 300 165 . 60 Anti-Garrison Action 350 | . . . . . . . . . 350 . . . Destroy Structure 824 | . 4 . . . 24 40 54 50 538 62 . 52 Partial Spotted 15 | . . . . . . . . . 15 . . . Lose Combat Pursuer 285 | . . 30 . . 45 15 . . 135 60 . . Influence Decreases 6179 | 20 53 130 104 . 372 985 618 343 936 1403 735 480 Entered New Map 1685 | . 2 . . . . 22 110 30 . 901 575 45 Time Decay 3297 | 20 51 77 104 . 332 529 398 273 576 452 130 355 Lost Part 667 | . . 53 . . 40 104 30 . 360 50 10 20 Lost Ally 380 | . . . . . . 180 80 40 . . 20 60 Purge Threat 150 | . . . . . . 150 . . . . . . Squads Dispatched 39 | . 1 . . . 8 4 . . 16 3 . 7 Investigation 7 | . . . . . 2 2 . . 1 . . 2 Extermination 9 | . . . . . 3 . . . 3 1 . 2 Reinforcement 12 | . 1 . . . 3 2 . . 3 1 . 2 Assault 7 | . . . . . . . . . 6 1 . . Garrison 4 | . . . . . . . . . 3 . . 1 Intercept . | . . . . . . . . . . . . . Searches Triggered . | . . . . . . . . . . . . . Construction Impeded 2 | . . . . . 1 . . . . . . 1 Haulers Reinforced 1 | . . . . . . . . . . 1 . . Active Scanning Responses . | . . . . . . . . . . . . . Cargo Convoy Interrupts 1 | . . . . . . . . . . . . 1 Stealth | -11 -10 -10 -7 -7 -5 -5 -5 -5 -5 -4 -4 -4 --------- Run | Yrd Mat Sub Rec Scr Fac Ext Cet Arc Hub Fac Was Fac Distress Signals 9 | . . . . . . 3 2 . 3 1 . . Communications Jammed 83 | . . . . . 11 . . . 71 1 . . Distress Signals 69 | . . . . . 9 . . . 59 1 . . Times Spotted 275 | . 5 19 . . 14 43 11 54 86 15 6 22 Peak Tracking Total 11 | . 1 6 . . 5 5 5 3 11 4 5 6 Tactical Retreats 17 | . . 2 . . 3 1 . . 9 2 . . Traps | -11 -10 -10 -7 -7 -5 -5 -5 -5 -5 -4 -4 -4 ------- Run | Yrd Mat Sub Rec Scr Fac Ext Cet Arc Hub Fac Was Fac Traps Triggered 10 | . . 3 . . . 5 . . 1 1 . . Indirectly . | . . . . . . . . . . . . . Trap Hack Attempts . | . . . . . . . . . . . . . Triggered . | . . . . . . . . . . . . . Disarmed . | . . . . . . . . . . . . . Reprogrammed . | . . . . . . . . . . . . . Reused . | . . . . . . . . . . . . . Traps Extracted . | . . . . . . . . . . . . . Installed . | . . . . . . . . . . . . . Triggered . | . . . . . . . . . . . . . Machines | -11 -10 -10 -7 -7 -5 -5 -5 -5 -5 -4 -4 -4 ---------- Run | Yrd Mat Sub Rec Scr Fac Ext Cet Arc Hub Fac Was Fac Machines Disabled 51 | . . 3 . . 2 4 1 5 21 11 . 4 Max in Single Turn 7 | . . 1 . . 1 1 1 1 5 7 . 2 Garrison Access 4 | . . . . . . . . . 2 2 . . Network Hub 1 | . . . . . . . . . 1 . . . Machines Repaired . | . . . . . . . . . . . . . Machines Dismantled 5 | . . . . . . 4 1 . . . . . Machines Sabotaged . | . . . . . . . . . . . . . Overloaded Fab Kills . | . . . . . . . . . . . . . Hacking | -11 -10 -10 -7 -7 -5 -5 -5 -5 -5 -4 -4 -4 --------- Run | Yrd Mat Sub Rec Scr Fac Ext Cet Arc Hub Fac Was Fac Machines Accessed 38 | . 3 1 8 4 5 6 . . 4 3 . 4 Terminals 20 | . 3 . 5 . 3 5 . . 3 . . 1 Fabricators 1 | . . . . . . . . . . 1 . . Repair Stations 1 | . . . . . . . . . . . . 1 Recycling Units 8 | . . . 3 . 2 1 . . . . . 2 Scanalyzers . | . . . . . . . . . . . . . Garrison Access 3 | . . . . . . . . . 1 2 . . Total Hacks 102 | . 11 1 20 10 14 16 . . 13 6 . 11 Successful 49 | . 7 1 6 10 8 8 . . 3 2 . 4 Failed 53 | . 4 . 14 . 6 8 . . 10 4 . 7 Catastrophic 13 | . . . 3 . 3 2 . . 1 2 . 2 Database Lockouts . | . . . . . . . . . . . . . Manual 48 | . 10 . 16 . 5 5 1 . 6 . . 5 Terminals 60 | . 11 . 13 . 9 14 . . 11 . . 2 Fabricators 3 | . . . . . . . . . . 3 . . Repair Stations 1 | . . . . . . . . . . . . 1 Recycling Units 22 | . . . 7 . 5 2 . . . . . 8 Scanalyzers . | . . . . . . . . . . . . . Garrison Access 5 | . . . . . . . . . 2 3 . . Terminal Hacks 24 | . 2 1 . 10 4 6 . . 1 . . . Record 9 | . . . . 9 . . . . . . . . Robot Analysis 1 | . 1 . . . . . . . . . . . Open Door 1 | . . . . . . 1 . . . . . . Terminal Index 1 | . . . . . . 1 . . . . . . Recycling Unit Index 1 | . . . . . 1 . . . . . . . Alert Level 1 | . . . . . . 1 . . . . . . Unreport Threat 1 | . . . . . . 1 . . . . . . Locate Traps 2 | . 1 . . . . . . . 1 . . . Patrol Status 1 | . . . . . 1 . . . . . . . Recall Investigation 1 | . . . . . . 1 . . . . . . Hauler Manifests 1 | . . . . . 1 . . . . . . . Registered Prototypes 1 | . . . . . 1 . . . . . . . Zone Layout 1 | . . . . . . 1 . . . . . . Proto ID Catalog 2 | . . 1 . 1 . . . . . . . . Fabricator Hacks . | . . . . . . . . . . . . . Repair Station Hacks . | . . . . . . . . . . . . . Recycling Unit Hacks 4 | . . . 2 . . 1 . . . . . 1 Retrieve Matter 1 | . . . . . . . . . . . . 1 Retrieve Components 3 | . . . 2 . . 1 . . . . . . Scanalyzer . | . . . . . . . . . . . . . Garrison Access Hacks 2 | . . . . . . . . . . 2 . . Seal Access 2 | . . . . . . . . . . 2 . . Unauthorized Hacks 19 | . 5 . 4 . 4 1 . . 2 . . 3 Terminals 10 | . 5 . 1 . 2 . . . 1 . . 1 Botnet 7 | . 2 . 1 . 2 . . . 1 . . 1 Operators 1 | . 1 . . . . . . . . . . . Skim 2 | . 2 . . . . . . . . . . . Fabricators . | . . . . . . . . . . . . . Repair Stations . | . . . . . . . . . . . . . Recycling Units 8 | . . . 3 . 2 1 . . . . . 2 Tunnel 3 | . . . 3 . . . . . . . . . Fedlink 5 | . . . . . 2 1 . . . . . 2 Scanalyzers . | . . . . . . . . . . . . . Garrison Access 1 | . . . . . . . . . 1 . . . Jam 1 | . . . . . . . . . 1 . . . Data Cores Recovered . | . . . . . . . . . . . . . Used . | . . . . . . . . . . . . . Hacking Detections 27 | . 3 . 6 . 4 5 . . 4 1 . 4 Full Trace Events 3 | . . . 2 . . 1 . . . . . . Feedback Events . | . . . . . . . . . . . . . Feedback Blocked . | . . . . . . . . . . . . . Robot Schematics Acquired . | . . . . . . . . . . . . . Robots Built . | . . . . . . . . . . . . . Authchips . | . . . . . . . . . . . . . Time . | . . . . . . . . . . . . . Total Robot Build Rating . | . . . . . . . . . . . . . Part Schematics Acquired . | . . . . . . . . . . . . . Parts Built . | . . . . . . . . . . . . . Authchips . | . . . . . . . . . . . . . Time . | . . . . . . . . . . . . . Total Part Build Rating . | . . . . . . . . . . . . . Parts Repaired . | . . . . . . . . . . . . . Time . | . . . . . . . . . . . . . Parts Recycled . | . . . . . . . . . . . . . Recycled Matter . | . . . . . . . . . . . . . Retrieved Matter . | . . . . . . . . . . . . . Retrieved Components 6 | . . . 5 . . 1 . . . . . . Parts Scanalyzed . | . . . . . . . . . . . . . Part Schematics Acquired . | . . . . . . . . . . . . . Parts Damaged . | . . . . . . . . . . . . . Bothacking | -11 -10 -10 -7 -7 -5 -5 -5 -5 -5 -4 -4 -4 ------------ Run | Yrd Mat Sub Rec Scr Fac Ext Cet Arc Hub Fac Was Fac Used RIF Installer . | . . . . . . . . . . . . . Robots Hacked 12 | . . . . . . 1 1 . . . 6 4 Non-combat 3 | . . . . . . . . . . . . 3 Combat 5 | . . . . . . 1 1 . . . 2 1 Robot Hacks Applied 9 | . . . . . . 1 1 . . . 2 5 parse_system 6 | . . . . . . 1 1 . . . 2 2 no_distress 1 | . . . . . . . . . . . . 1 find_fabricator 1 | . . . . . . . . . . . . 1 find_recycling 1 | . . . . . . . . . . . . 1 Manual 6 | . . . . . . . . . . . 6 . Relay Couplers Released 3 | . . . . . . . . . 3 . . . Machine Destruction 3 | . . . . . . . . . 3 . . . Fabnet Peak Effective % . | . . . . . . . . . . . . . Robots Rewired 17 | . . . . . . 11 . . . . 6 . Allies Hacked 3 | . . . . . . . . . . . . 3 Hacks Repelled . | . . . . . . . . . . . . . Allies | -11 -10 -10 -7 -7 -5 -5 -5 -5 -5 -4 -4 -4 -------- Run | Yrd Mat Sub Rec Scr Fac Ext Cet Arc Hub Fac Was Fac Total Allies 30 | . . . . . . 19 5 . . . 6 . Largest Group 9 | . . . . . . 9 8 4 1 . 5 4 Highest-Rated Group 699 | . . . . . . 366 699 307 84 . 694 553 Highest-Rated Ally 159 | . . . . . . 159 159 96 84 . 141 141 Total Orders . | . . . . . . . . . . . . . Ally Attacks 241 | . . . . . . 122 62 16 6 . 18 17 Total Damage 6278 | . . . . . . 2231 1638 494 266 . 964 685 Kills 40 | . . . . . . 15 9 2 3 . . 11 Allies Corrupted . | . . . . . . . . . . . . . Allies Melted . | . . . . . . . . . . . . . Intel | -11 -10 -10 -7 -7 -5 -5 -5 -5 -5 -4 -4 -4 ------- Run | Yrd Mat Sub Rec Scr Fac Ext Cet Arc Hub Fac Was Fac Active Infowar (turns) 16479 | 5 679 5453 1522 4816 837 346 . 3 1726 691 113 288 Sensors 294 | . . . . . . . . . . . 113 181 Structural 1711 | . . 168 . . 522 235 . . 357 322 . 107 Seismic 14048 | 5 679 5285 1522 4816 810 29 . 3 899 . . . Jamming 2249 | . . . . . 22 106 . . 1567 554 . . Robot Analysis Total 1 | . 1 . . . . . . . . . . . Derelict Logs Recovered 7 | . . 2 . 5 . . . . . . . . Drone Launches . | . . . . . . . . . . . . . Drone Recoveries . | . . . . . . . . . . . . . Exploration | -11 -10 -10 -7 -7 -5 -5 -5 -5 -5 -4 -4 -4 ------------- Run | Yrd Mat Sub Rec Scr Fac Ext Cet Arc Hub Fac Was Fac Turns Passed 22852 | 85 679 5686 1522 4816 1094 2529 964 992 2005 1123 279 1078 Spaces Moved 8541 | 30 208 1632 493 1563 543 1095 388 400 819 617 145 608 Core 13 | . . . . . . . . 13 . . . . Treads 4304 | . 173 1632 493 1563 13 1 3 . 227 199 . . Legs 3761 | 30 35 . . . 530 1094 385 387 233 314 145 608 Wheels 463 | . . . . . . . . . 359 104 . . Hover . | . . . . . . . . . . . . . Flight . | . . . . . . . . . . . . . Fastest Speed 106 | 120 120 320 305 305 120 122 190 120 120 110 117 106 Average Speed 232 | 120 286 320 306 305 156 173 190 194 173 154 147 148 Slowest Speed 2200 | 120 320 320 320 305 305 325 240 2200 570 243 215 215 Overloaded Moves . | . . . . . . . . . . . . . Propulsion Burnouts . | . . . . . . . . . . . . . Robots Hopped . | . . . . . . . . . . . . . Potential Cave-ins 1 | . . . . . . . . . . . . 1 Cave-ins Triggered . | . . . . . . . . . . . . . Exploration Rate (%) 55 | 3 40 98 68 89 14 97 66 92 56 15 75 9 Regions Visited 12 Branch Regions 7 Pre-discovered Areas 10 | . . 2 3 4 1 . . . . . . . Known Exits Taken . | . . . . . . . . . . . . . Unknown Exits Taken 10 | 1 1 1 1 1 1 1 1 1 1 . . . Scrap Searched 19 | . . 9 . 10 . . . . . . . . Spaces Dug 76 | . 4 14 . . 7 . . . 24 12 . 15 Terrain Destroyed 588 | . 5 36 . . 12 26 38 29 372 35 . 35 Melee . | . . . . . . . . . . . . . Projectile 244 | . 5 6 . . 12 24 38 29 100 27 . 3 AOE 342 | . . 30 . . . . . . 272 8 . 32 Terrain Rammed . | . . . . . . . . . . . . . Walls Destroyed . | . . . . . . . . . . . . . Machines Disabled . | . . . . . . . . . . . . . Actions | -11 -10 -10 -7 -7 -5 -5 -5 -5 -5 -4 -4 -4 --------- Run | Yrd Mat Sub Rec Scr Fac Ext Cet Arc Hub Fac Was Fac Total 10627 | 62 255 1966 503 1627 726 1531 543 545 1169 736 215 749 Wait 666 | 22 14 207 1 9 77 73 20 29 79 18 39 78 Move 8530 | 29 207 1631 492 1562 542 1094 387 399 818 617 144 608 Hop . | . . . . . . . . . . . . . Pick Up 164 | 2 7 26 2 24 14 24 14 7 24 13 1 6 Fast Attach 74 | 1 . . 1 1 3 14 11 10 21 10 1 1 Attach 85 | . . 8 . 2 17 10 4 1 23 11 1 8 Detach 15 | . . . . . 4 2 . . 5 2 2 . Swap 142 | . 7 18 1 1 16 27 16 6 38 8 1 3 Drop 130 | . 5 6 4 28 1 18 19 15 10 22 . 2 Fire 605 | 8 15 70 . . 49 107 61 78 151 35 3 28 Melee 32 | . . . . . . 1 3 . . . 23 5 Ram . | . . . . . . . . . . . . . Kick 14 | . . . . . 3 1 . . . . . 10 Crush 2 | . . . 2 . . . . . . . . . Escape Stasis 23 | . . . . . . 23 . . . . . . Rewire 105 | . . . . . . 105 . . . . . . Trap . | . . . . . . . . . . . . . Miscellaneous 40 | . . . . . . 32 8 . . . . . Route ------- -11/Scrapyard -10/Materials (discovered 3 exits: [*Min x2] / *Sub) -10/Subcaves (discovered 3 exits: [*Mat x2] / *Rec) -7/Recycling -7/Scraptown -5/Factory -5/Extension (discovered 2 exits: *Fac / *Cet) -5/Cetus (discovered 2 exits: *Fac / [*Arc]) -5/Archives (discovered 3 exits: *Fac / *Hub x2) -5/Hub_04(d) (discovered 3 exits: *Fac x3) -4/Factory (discovered 2 exits: [*Res x2]) -4/Waste -4/Factory History --------- Turn | Location | Event 10 | -11/Scrapyard | Discovered new exit (range 3) 86 | -11/Scrapyard | Entered Materials 311 | -10/Materials | Build established: Mutant 335 | -10/Materials | Discovered new exit (range 6) 485 | -10/Materials | Discovered new exit (range 9) 736 | -10/Materials | Discovered new exit (range 10) 765 | -10/Materials | Entered Subcaves 772 | -10/Subcaves | Learned location of Storage (-7) 1709 | -10/Subcaves | Visited 4L-MR0's lab 1745 | -10/Subcaves | Found Cargo Legs 3250 | -10/Subcaves | Discovered new exit (range 10) 3465 | -10/Subcaves | Learned location of Zion (-6) 3489 | -10/Subcaves | Shifting Twisted Machinery released Scrap Shield 3514 | -10/Subcaves | Discovered new exit (range 6) 3762 | -10/Subcaves | Discovered new exit (range 3) 4105 | -10/Subcaves | Shifting Twisted Machinery released Piercing Trap 4472 | -10/Subcaves | Ambushed by Subdweller buried in earth 4474 | -10/Subcaves | Ambushed by Subdweller buried in earth 4520 | -10/Subcaves | Lost 3 parts (1p1u1w) 4626 | -10/Subcaves | Ambushed by Subdwellers from Twisted Machinery 4632 | -10/Subcaves | Core integrity fell below 50% 5000 | -10/Subcaves | Core integrity fell below 20% 6451 | -10/Subcaves | Entered Recycling 6452 | -7/Recycling | Met a Zionite searching for Scraptown 7899 | -7/Recycling | Scanned before Scraplab entrance 7942 | -7/Recycling | Entered Scraplab 7966 | -7/Recycling | Discovered new exit (range 3) 7973 | -7/Recycling | Entered Scraptown 8432 | -7/Scraptown | Scanned Subdweller tech in exchange for log data 8441 | -7/Scraptown | Learned location of Warlord (-5) 8444 | -7/Scraptown | Learned location of Extension (-5) 8447 | -7/Scraptown | Learned Factory emergency access door positions 8450 | -7/Scraptown | Learned location of 2 exits from Upper Caves 8661 | -7/Scraptown | Visited IN-MT5's Study 8734 | -7/Scraptown | Visited Cyclists 8758 | -7/Scraptown | Visited CPS Storage 8914 | -7/Scraptown | Visited Bundlers 9633 | -7/Scraptown | Visited Comm Corps 9777 | -7/Scraptown | Visited TADAMA 9832 | -7/Scraptown | Visited UFD Registry 9832 | -7/Scraptown | Registered with UFD as "Matterbot" 9893 | -7/Scraptown | Visited DA-N13 Charitable Foundation 9905 | -7/Scraptown | Found DCF Scrap (31 items) 10024 | -7/Scraptown | Visited Curators Association 10124 | -7/Scraptown | Visited Science Guys 10274 | -7/Scraptown | Delivered Scrap Shield to a Scientist 10539 | -7/Scraptown | Visited Chapter 10 10584 | -7/Scraptown | Visited Supply Room 10636 | -7/Scraptown | Visited Junk Repository 10706 | -7/Scraptown | Visited Modified Component R&D 10949 | -7/Scraptown | Visited Abandonware Association 10970 | -7/Scraptown | Learned abandonware demo "OVRCLOCK.EXE" 10982 | -7/Scraptown | Learned abandonware demo "POISON.EXE" 10982 | -7/Scraptown | Learned abandonware demo "REBOOT5.EXE" 11062 | -7/Scraptown | Visited Scrap Suit Storage 11135 | -7/Scraptown | Visited Observation Area 11288 | -7/Scraptown | Found Scrap Suit 11294 | -7/Scraptown | Found Scrap Suit 12603 | -7/Scraptown | Met Optimus 12603 | -7/Scraptown | Accepted into 0bPrime 12782 | -7/Scraptown | Discovered new exit (range 3) 12789 | -7/Scraptown | Entered Factory 12789 | -5/Factory | Evolved 10 slots: Power x1, Propulsion x4, Utility x5 12931 | -5/Factory | Spotted B-75 Beast 13302 | -5/Factory | Loaded intel: 8 recycling unit locations 13371 | -5/Factory | Learned location of Protoforge (-2) 13433 | -5/Factory | Attached Cargo Legs, gained temporary slots: Utility x2 13461 | -5/Factory | Lost 3 parts (1p2n) 13615 | -5/Factory | Lost 3 parts (1n1u1w) 13777 | -5/Factory | Build established: Derelict-Mutant 13802 | -5/Factory | Discovered new exit (range 16) 13883 | -5/Factory | Entered Extension 13976 | -5/Extension | Loaded intel: 2 recycling unit locations 14077 | -5/Extension | Lost 6 parts (1p1n4u) 14171 | -5/Extension | Lost 4 parts (1n2u1w) 14549 | -5/Extension | Build established: Scavenger-Mutant 14693 | -5/Extension | Rescued a captive Derelict 14694 | -5/Extension | Rescued a captive Derelict 14827 | -5/Extension | Rescued a captive Derelict 14827 | -5/Extension | Rescued a captive Derelict 14925 | -5/Extension | Rescued a captive Derelict 15212 | -5/Extension | Spotted B-75 Beast 15225 | -5/Extension | Destroyed B-75 Beast 15241 | -5/Extension | Spotted B-75 Beast 15263 | -5/Extension | Allies destroyed B-75 Beast 15687 | -5/Extension | Lost 3 allies 15852 | -5/Extension | Rescued A7 15941 | -5/Extension | Rescued a captive Derelict 15941 | -5/Extension | Rescued a captive Derelict 16369 | -5/Extension | Discovered new exit (range 16) 16371 | -5/Extension | Discovered new exit (range 15) 16412 | -5/Extension | Entered Cetus 16412 | -5/Cetus | Accompanied by 7 allies (A7) 16417 | -5/Cetus | Acquired a Cetus Manufacturing Module code from A7 16440 | -5/Cetus | Spotted Cetus Guard 16440 | -5/Cetus | Spotted Cetus Guard 16443 | -5/Cetus | Spotted Cetus Guard 16450 | -5/Cetus | Spotted Cetus Guard 16455 | -5/Cetus | Allies destroyed Cetus Guard 16466 | -5/Cetus | Destroyed Cetus Guard 16469 | -5/Cetus | Allies destroyed Cetus Guard 16471 | -5/Cetus | Allies destroyed Cetus Guard 16491 | -5/Cetus | Lost 3 allies 16518 | -5/Cetus | System corruption reached 10% 16683 | -5/Cetus | Started Cetus Manufacturing Module 16708 | -5/Cetus | Manufactured an Enhanced Grunt 16713 | -5/Cetus | Escorted A7 to Cetus Mainframe 16733 | -5/Cetus | Manufactured an Enhanced Grunt 16758 | -5/Cetus | Manufactured an Enhanced Grunt 16783 | -5/Cetus | Manufactured an Enhanced Grunt 16808 | -5/Cetus | Manufactured an Enhanced Grunt 16900 | -5/Cetus | Discovered new exit (range 15) 16933 | -5/Cetus | Spotted Cetus Guard 16933 | -5/Cetus | Spotted Cetus Guard 16938 | -5/Cetus | Spotted Cetus Guard 16938 | -5/Cetus | Spotted Cetus Guard 16939 | -5/Cetus | Allies destroyed Cetus Guard 16945 | -5/Cetus | Destroyed Cetus Guard 16960 | -5/Cetus | Allies destroyed Cetus Guard 16963 | -5/Cetus | Allies destroyed Cetus Guard 16966 | -5/Cetus | Discovered new exit (range 15) 16975 | -5/Cetus | Met Revision 17 16992 | -5/Cetus | Lost 3 parts (3n) 17162 | -5/Cetus | Security sweep announced 17330 | -5/Cetus | Murdered A7 17333 | -5/Cetus | Extracted ID and sensor layout for unrecognized location from A7's data core 17346 | -5/Cetus | Found Med. Regenerative Plating 17376 | -5/Cetus | Entered Archives 17376 | -5/Archives | Accompanied by 4 allies 17461 | -5/Archives | Discovered new exit (range 16) 17489 | -5/Archives | Discovered new exit (range 16) 17506 | -5/Archives | Discovered new exit (range 16) 18293 | -5/Archives | Found Exp. Thermal Shield 18368 | -5/Archives | Entered Hub_04(d) 18368 | -5/Hub_04(d) | Accompanied by 1 ally 18424 | -5/Hub_04(d) | Spotted B-75 Beast 18477 | -5/Hub_04(d) | Garrison activated, responded to threat 18734 | -5/Hub_04(d) | Core integrity fell below 50% 18835 | -5/Hub_04(d) | Lost 15 parts (3p5n5u2w) 19268 | -5/Hub_04(d) | First assault squad dispatched 19367 | -5/Hub_04(d) | Discovered new exit (range 7) 19423 | -5/Hub_04(d) | Lost 9 parts (2n3u4w) 19614 | -5/Hub_04(d) | Discovered new exit (range 5) 19615 | -5/Hub_04(d) | Core integrity fell below 20% 19837 | -5/Hub_04(d) | Network Hub disabled 19915 | -5/Hub_04(d) | Destroyed 8 combat bots 19992 | -5/Hub_04(d) | Lost 5 parts (2n2u1w) 20140 | -5/Hub_04(d) | Discovered new exit (range 11) 20210 | -5/Hub_04(d) | System corruption reached 30% 20314 | -5/Hub_04(d) | Destroyed 7 combat bots 20373 | -5/Hub_04(d) | Entered Factory 20373 | -4/Factory | Evolved 2 slots: Weapon x2 20607 | -4/Factory | Discovered new exit (range 16) 20683 | -4/Factory | Build established: Scavenger-Tank 21226 | -4/Factory | Discovered new exit (range 5) 21373 | -4/Factory | First assault squad dispatched 21417 | -4/Factory | Spotted B-86 Titan 21496 | -4/Factory | Sucked down chute 21496 | -4/Factory | Entered Waste 21511 | -4/Waste | EMP discharged 21511 | -4/Waste | System corruption reached 10% 21517 | -4/Waste | Lost 4 parts (1u3w) 21527 | -4/Waste | Spotted C-40 Crusher 21553 | -4/Waste | Spotted C-40 Crusher 21557 | -4/Waste | Spotted C-40 Crusher 21581 | -4/Waste | Rewired C-40 Crusher 21585 | -4/Waste | Spotted C-40 Crusher 21585 | -4/Waste | Spotted C-40 Crusher 21590 | -4/Waste | Rewired C-40 Crusher 21597 | -4/Waste | Rewired C-40 Crusher 21602 | -4/Waste | Rewired C-40 Crusher 21607 | -4/Waste | Spotted C-40 Crusher 21609 | -4/Waste | Crushed by Compactor (1 part destroyed, 1 dropped) 21611 | -4/Waste | EMP discharged 21613 | -4/Waste | Rewired C-40 Crusher 21635 | -4/Waste | Rewired C-40 Crusher 21682 | -4/Waste | Discovered new exit (range 16) 21711 | -4/Waste | EMP discharged 21775 | -4/Waste | Entered Factory 21775 | -4/Factory | Accompanied by 4 allies 22306 | -4/Factory | Lost 4 parts (2u2w) 22387 | -4/Factory | Loaded intel: 8 recycling unit locations 22526 | -4/Factory | Build established: Scavenger-Mutant 22590 | -4/Factory | Found Damper Plating 22787 | -4/Factory | Cargo convoy interrupted 22788 | -4/Factory | Garrison activated, responded to threat 22853 | -4/Factory | Self-destructed Last Messages --------------- 22836_ Jacked U-05 Engineer... >>no_distress Distress signal routine blocked. 22836_ Railgun destroyed. 22836_ Sneak attack on U-05 Engineer. 22836_ Jacked U-05 Engineer... >>parse_system Reading system data... 22837_ Kicked U-05 Engineer. 22838_ System corrupted: Matter fused (-5). 22839_ Kicked U-05 Engineer. 22843_ P-70 Sage resets U-05 Engineer, behavior restored. 22844_ Kicked U-05 Engineer. 22846_ Kicked U-05 Engineer out of the way. 22846_ ALERT: Construction progress impeded, dispatching reinforcements to local area. 22847_ Acquired 21 matter. 22847_ U-05 Engineer lays Concrete. 22849_ U-05 Engineer builds a Wall. 22850_ Acquired 36 matter. Map ----- +----------------------------------------------------+ | ???????????????????????? #??# ????## | | ???????????????????????""" #??# #???## | | ??????????????????????#""" #??# #???########### | | ??????????????????????#""" #??# #???########### | | ??????????????????????# #??# #?????????????? | | ??????????????????????#""" #??# #?????????????? | | ??????????????????????#""" #??# #?????????????? | | ??????????????????????#""" #??# #?????????????? | | ????????? ????????????# #### ####??????????? | | ????????? ?????###????# # #??????????? | | ????????? ?????# #######+## #?????#####? | | ????????? ?????# T ###########? | | ????????? ?????# " ##? | | ????????? ?????# ######## ##? | | ????????? ?????# #######+## ! #????### ### | | ????????# #????###??????# # ######## ### | | ????????# #?????????????# ####+########## ## | | ???????# #############?# # + | | ??????# # ### #*"" """ ##### ## | | ###### # # # Y """ ######+### | | # # # " """ #?# ! # | | # # #[ "" #?# # | | # #= # "" #?# """" # | | + ### u# #?# """" # | | # / p #?# """" # | | ##+#######"#######@ % ;########?# """" # | | # ### # ##????????######## | | # """"" ## ##???????????????## | | """" # ""R"" ### ### # #?????????????????? | | """ " " #?#### #######?????????????????? | | """ #????###????????????????????????? | | #???????????????????????????????? | | % [ #???????????????????????????????? | | = #???????????????????????????????? | | %# #####???????????????????????????????? | | ????????????????????????????????????? | | ""????????????????????????????????????? | | "?????????????????????????????????????? | | " "?????????????????????????????????????? | | ?" ??????????????????????????????????????? | | ??? ???????????????????????????????????????? | | ??? ????????????????????????????????????????? | | ??? ?????????????????????????????????????????? | | ??? ""??????????????????????????????????????????? | | ??? ""??????????????????????????????????????????? | | ??? G??????????????????????????????????????????? | | ??? ????????????????????????????????????????????? | | ??? ?????????????????????????????????????????????? | | ?????????????????????????????????????????????????? | | ?????????????????????????????????????????????????? | +----------------------------------------------------+ Best States ------------- Heat Dissipation 78 Energy Generation 45 Energy Capacity 600 Matter Stores 300 Matter Capacity 300 Sight Range 16 Robot Scan Range 18 Terrain Scan Density 10 Jamming Range 14 Armor Coverage 1200 Resistance: KI 30 Resistance: TH 30 Utility Shielding 66 Weapon Cycling 30 Evasion (%) 65 Target Analysis 6 Recoil Reduction 6 Energy Filtering 30 Particle Charging 25 Kinecelleration 40 Salvage Targeting 2 Offensive Hacking 11 Item Schematics ----------------- None Robot Schematics ------------------ None Fabricated ------------ Nothing Repaired ---------- Nothing Alien Tech Used ----------------- None Achievements -------------- None Challenges ------------ None Game ------ Seed TrapPowerBiocell Manual? 0 Play Time 02:21:32 Cumulative 451.5 hours Start 2025.06.15 @ 16:30:44 End 2025.06.16 @ 20:35:49 Sessions 5 Manual Loads 0 Difficulty Rogue Special Mode None Game No. 229 Rogue 166 Adventurer 63 Explorer 0 Win Type - Total 9 Types 8/0/0/1/0/0/0/0/0/0 Lore% 88 Gallery% 80 Achievement% 66 Wizard Run 0 Options --------- Layout 0 ASCII 0 Keyboard 1 Movement Numpad Keybinds 0 Fullscreen 1 Font 18/Terminus Map View 76x50 Zoom Use 0% Tactical HUD 1 Map Filters NONE Filters NONE Steam 1 RUN: 468acccd-1244-4228-861b-b7690f8fe900